bitfinex/quotes_ETHUSD_20240924
["timestamp","ask_amount","ask_price","bid_price","bid_amount"]
[1727162055431,1.22510086,2652.0,2651.8,3.77102]
[1727162057528,0.038,2652.0,2651.9,3.77088]
[1727162058525,0.038,2652.0,2651.8,3.77094]
[1727162058735,1.22510086,2652.0,2651.8,3.77094]
[1727162060484,1.22510086,2652.0,2651.8,7.54189]
[1727162060922,1.22510086,2652.0,2651.9,3.77088]
[1727162062624,1.22510086,2652.0,2651.9,6.18851724]
[1727162062625,0.038,2652.0,2651.9,6.18851724]
[1727162068009,0.038,2652.0,2651.9,7.43536253]
[1727162068208,0.038,2652.0,2651.9,10.43536253]
[1727162068525,0.038,2652.0,2651.9,10.35995186]
[1727162068847,0.038,2652.0,2651.9,11.00522112]
[1727162069911,0.038,2652.0,2651.9,11.0051833]
[1727162070443,0.038,2652.0,2651.9,11.00513213]
[1727162071508,0.038,2652.0,2651.9,11.55513213]
[1727162071732,0.038,2652.0,2651.9,11.55501949]
[1727162073267,0.038,2652.0,2651.9,11.00501949]
[1727162074035,0.038,2652.0,2651.9,10.60184868]
[1727162074347,0.038,2652.0,2651.9,11.00497834]
[1727162074851,0.038,2652.0,2651.9,11.4081206]
[1727162076895,0.038,2652.0,2651.9,10.35979299]
[1727162077290,0.038,2652.0,2651.9,9.95661724]
[1727162080169,0.038,2652.0,2651.9,9.18851724]
[1727162081779,0.038,2652.0,2651.9,9.95571724]
[1727162082261,0.038,2652.0,2651.9,10.35900019]
[1727162082655,0.038,2652.0,2651.9,9.18851724]
[1727162083093,0.038,2652.0,2651.9,8.21328476]
[1727162084214,0.038,2652.0,2651.9,8.98048476]
[1727162092860,0.038,2652.0,2651.9,9.53048476]
[1727162094054,0.038,2652.0,2651.9,8.98048476]
[1727162097875,0.038,2652.0,2651.9,9.53048476]
[1727162098036,0.038,2652.0,2651.9,10.86062724]
[1727162100495,0.0381144,2652.5,2652.0,3.55]
[1727162100677,1.59073287,2653.1,2652.5,3.55]
[1727162100678,0.005,2653.1,2652.5,3.55]
[1727162100881,0.005,2653.1,2653.0,8.08441]
[1727162101102,0.005,2653.1,2653.0,9.41403548]
[1727162101396,0.005,2653.1,2653.0,10.30644024]
[1727162102727,0.005,2653.1,2653.0,6.76931]
[1727162102869,0.7624,2653.1,2653.0,3.76931]
[1727162103868,0.7624,2653.1,2653.0,5.21171476]
[1727162104620,0.7624,2653.1,2653.0,3.76931]
[1727162105615,0.7624,2653.1,2652.9,3.76937]
[1727162106615,0.7574,2653.0,2652.6,3.76985]
[1727162106849,0.7574,2652.8,2652.5,3.76992]
[1727162107214,0.7574,2652.8,2652.4,3.77007]
[1727162107453,0.7574,2652.8,2652.4,7.54015]
[1727162107751,0.7574,2652.8,2652.4,3.77007]
[1727162107955,0.7574,2652.8,2652.3,3.0]
[1727162108262,0.7574,2652.8,2652.2,3.77037]
[1727162108263,0.7574,2652.7,2652.2,3.77037]
[1727162108732,1.94450086,2652.7,2652.2,3.77037]
[1727162108937,0.7574,2652.5,2652.0,3.77065]
[1727162109114,1.18710086,2652.5,2652.0,3.77065]
[1727162109451,1.18710086,2652.5,2651.8,3.77094]
[1727162109452,2.97577523,2652.4,2651.9,3.77084]
[1727162109818,2.97577523,2652.4,2652.0,3.77066]
[1727162111920,1.78867437,2652.4,2652.0,3.77066]
[1727162112133,1.78867437,2652.4,2652.1,3.77054]
[1727162112323,2.97577523,2652.4,2652.1,3.77054]
[1727162112953,2.97577523,2652.4,2651.8,3.77093]
[1727162113155,2.97577523,2652.4,2652.0,3.77072]
[1727162113758,0.83315481,2652.3,2652.0,3.77072]
[1727162113967,0.7574,2652.2,2651.8,3.77093]
[1727162114174,1.94450086,2652.2,2651.8,3.77093]
[1727162114457,0.7574,2652.1,2651.8,3.77093]
[1727162114949,0.7194,2652.1,2651.8,7.54187]
[1727162115147,0.7194,2652.1,2651.8,3.77093]
[1727162115379,0.7194,2652.1,2651.9,3.77078]
[1727162117190,0.7194,2652.1,2651.7,3.77108]
[1727162117388,0.99336557,2652.1,2651.7,3.77108]
[1727162117546,1.46106643,2652.1,2651.5,3.77137]
[1727162117970,0.8301,2651.9,2651.6,3.7712]
[1727162119352,0.8301,2651.9,2651.5,3.77137]
[1727162120071,0.8301,2651.8,2651.5,3.77145]
[1727162120274,1.40890909,2651.8,2651.4,3.77151]
[1727162120452,0.8301,2651.7,2651.4,3.77157]
[1727162120652,0.8301,2651.7,2651.3,7.54332]
[1727162121173,0.8301,2651.7,2651.3,3.77166]
[1727162121598,0.8301,2651.7,2651.3,7.54331]
[1727162121806,1.46679,2651.7,2651.3,7.54331]
[1727162122187,1.46679,2651.7,2651.4,3.77158]
[1727162122403,1.46679,2651.7,2651.3,3.77165]
[1727162123315,0.8301,2651.6,2651.3,3.77165]
[1727162123473,0.8301,2651.6,2651.1,3.77194]
[1727162123683,0.8301,2651.6,2651.2,3.7718]
[1727162124008,1.530487,2651.6,2651.2,3.7718]
[1727162124176,1.530487,2651.6,2650.8,3.929266]
[1727162124177,1.530487,2651.6,2651.0,3.77204]
[1727162124377,3.77145,2651.5,2651.0,3.77204]
[1727162124580,0.8301,2651.4,2651.0,3.77204]
[1727162125091,0.8301,2651.4,2650.8,7.54466]
[1727162125290,0.8301,2651.4,2650.8,3.7723]
[1727162125291,0.8301,2651.2,2650.8,3.7723]
[1727162125705,0.8301,2651.2,2650.6,3.77263]
[1727162126032,0.8301,2651.1,2650.8,3.77234]
[1727162130722,0.8301,2651.1,2650.8,7.54469]
[1727162131124,0.8301,2651.1,2650.9,3.77225]
[1727162131524,0.8301,2651.1,2650.9,3.77219]
[1727162138954,0.8301,2651.1,2650.7,3.77248]
[1727162139540,0.8301,2651.1,2650.7,7.54499]
[1727162139740,0.8301,2651.1,2650.8,3.77243]
[1727162140454,0.8301,2651.1,2651.0,3.77216]
[1727162144393,0.7759,2651.3,2651.1,3.77201]
[1727162144567,0.7759,2651.3,2651.1,3.77195]
[1727162144773,0.7759,2651.3,2651.2,3.77187]
[1727162145701,0.7759,2651.3,2651.1,3.77195]
[1727162145897,0.7759,2651.3,2651.1,3.77193]
[1727162147276,11.17117,2651.7,2651.1,3.77193]
[1727162147608,2.315629,2651.6,2651.2,3.77187]
[1727162149672,0.8214,2651.6,2651.2,3.77187]
[1727162149917,0.8214,2651.6,2651.3,3.77166]
[1727162150069,0.8214,2651.6,2651.4,3.7715]
[1727162150502,0.8214,2651.6,2651.2,4.52786]
[1727162150709,0.8214,2651.6,2651.3,3.77172]
[1727162150914,0.8214,2651.5,2650.9,3.77228]
[1727162151276,4.59308,2651.4,2650.8,3.77231]
[1727162151699,4.59308,2651.4,2650.8,7.54467]
[1727162151904,4.59308,2651.4,2650.8,3.77231]
[1727162152103,4.59308,2651.4,2650.8,7.54468]
[1727162152304,0.83646,2651.3,2650.9,3.77229]
[1727162152995,4.59308,2651.4,2650.9,3.77229]
[1727162153224,0.8214,2651.4,2651.0,3.77213]
[1727162155731,0.8214,2651.4,2650.9,3.77228]
[1727162155732,4.59311,2651.4,2650.9,3.77228]
[1727162156230,5.78021086,2651.4,2650.9,3.77228]
[1727162156394,0.95516609,2651.3,2650.9,3.77228]
[1727162157013,0.95516609,2651.3,2650.7,7.54502]
[1727162157014,0.8214,2651.2,2650.7,7.54502]
[1727162157417,4.59329,2651.2,2650.7,7.54499]
[1727162157742,4.59329,2651.2,2650.7,3.77248]
[1727162158401,4.59329,2651.2,2650.7,7.54499]
[1727162158931,5.78039086,2651.2,2650.7,7.54499]
[1727162159093,4.59329,2651.2,2650.7,7.54499]
[1727162159310,5.78039086,2651.2,2650.7,7.54499]
[1727162160520,2.00850086,2651.2,2650.7,3.77248]
[1727162160719,2.00850086,2651.2,2650.8,3.77242]
[1727162160934,2.00850086,2651.2,2650.7,3.77248]
[1727162161457,1.18710086,2651.1,2650.7,7.54499]
[1727162162727,1.18710086,2651.1,2650.7,3.77248]
[1727162162925,1.18710086,2651.0,2650.7,3.77248]
[1727162163149,1.18710086,2651.1,2650.7,3.77248]
[1727162163322,1.18710086,2651.0,2650.7,3.77248]
[1727162163537,1.18710086,2651.0,2650.8,3.77242]
[1727162165851,1.18710086,2650.9,2650.8,3.77242]
[1727162166616,1.18710086,2651.0,2650.8,3.77242]
[1727162167416,1.18807819,2651.0,2650.9,3.77222]
[1727162167568,1.18807819,2651.1,2651.0,4.57036]
[1727162167769,1.58573287,2651.2,2651.1,3.77201]
[1727162168401,1.97971658,2651.3,2651.1,3.77201]
[1727162168600,1.97971658,2651.2,2651.1,3.77201]
[1727162168777,1.58439376,2651.2,2651.1,3.77201]
[1727162169480,1.97971658,2651.3,2651.1,3.77201]
[1727162169692,1.58478124,2651.2,2651.1,3.77201]
[1727162169905,1.97971658,2651.3,2651.1,3.77201]
[1727162170408,1.97971658,2651.2,2651.1,3.77201]
[1727162170919,1.58503825,2651.2,2651.1,3.77201]
[1727162171291,1.98129039,2651.3,2650.8,4.57054]
[1727162171497,1.58504565,2651.1,2651.0,3.77215]
[1727162171725,1.58504565,2651.1,2650.5,3.7982]
[1727162171726,0.7566,2651.0,2650.5,3.7982]
[1727162172026,0.7566,2651.0,2650.6,4.17712407]
[1727162172027,1.18880149,2650.7,2650.6,4.17712407]
[1727162172180,1.18880149,2650.7,2650.6,3.77261]
[1727162172586,1.18880149,2650.8,2650.7,3.77258]
[1727162172994,1.18888359,2650.8,2650.7,3.77258]
[1727162173200,1.18888359,2650.8,2650.7,4.229658]
[1727162175517,1.18888359,2650.8,2650.7,3.77258]
[1727162175722,1.58504565,2650.9,2650.8,3.77244]
[1727162175906,1.98142756,2650.9,2650.8,3.77244]
[1727162176118,1.98156578,2650.9,2650.8,3.77244]
[1727162176421,1.98156578,2651.0,2650.8,3.77244]
[1727162176598,1.98156578,2650.9,2650.8,3.77244]
[1727162176800,1.58520604,2650.9,2650.8,3.77244]
[1727162177003,1.98156578,2651.0,2650.8,3.77244]
[1727162177406,1.98156578,2650.9,2650.7,3.77258]
[1727162177591,1.58525501,2650.8,2650.7,3.77248]
[1727162178224,1.98156578,2650.9,2650.6,3.77271]
[1727162178402,1.58521329,2650.7,2650.6,3.77271]
[1727162178791,1.18892947,2650.7,2650.6,3.77271]
[1727162182328,1.18892947,2650.7,2650.5,3.77286]
[1727162182529,1.18892947,2650.7,2650.5,7.54566]
[1727162182900,1.18892947,2650.7,2650.6,3.77273]
[1727162183297,1.18892947,2650.7,2650.5,3.7728]
[1727162183532,1.18892947,2650.7,2650.5,3.77279]
[1727162183740,1.18892947,2650.7,2650.5,3.77278]
[1727162184037,1.18892947,2650.7,2650.3,3.7731]
[1727162184038,2.34181329,2650.6,2650.3,3.7731]
[1727162184209,1.18898415,2650.4,2650.3,3.7731]
[1727162184703,1.58531221,2650.5,2650.3,7.54617]
[1727162185039,1.18882075,2650.4,2650.3,3.77307]
[1727162185217,1.58531221,2650.5,2650.2,3.7732]
[1727162185412,1.58531221,2650.5,2650.3,3.77312]
[1727162185413,1.18858565,2650.4,2650.3,3.77312]
[1727162185624,1.18858565,2650.4,2650.1,8.25320955]
[1727162186024,1.18858565,2650.3,2650.1,8.25320955]
[1727162186229,1.18858565,2650.3,2650.1,12.02655955]
[1727162186412,1.18858565,2650.3,2650.1,6.8114144]
[1727162186753,1.18858565,2650.4,2650.3,3.77315]
[1727162186906,1.18834072,2650.4,2650.3,5.21494515]
[1727162187332,1.58531221,2650.6,2650.3,5.21494515]
[1727162187333,1.18834072,2650.5,2650.3,5.21494515]
[1727162187544,1.18834072,2650.5,2650.4,3.77301]
[1727162187750,1.18811234,2650.5,2650.4,3.77301]
[1727162187950,1.18811234,2650.5,2650.3,5.21490515]
[1727162188148,1.18811234,2650.4,2650.3,5.21490515]
[1727162189454,1.58531221,2650.5,2650.3,5.21490515]
[1727162189455,1.18811234,2650.5,2650.3,5.21490515]
[1727162189823,1.18811234,2650.4,2650.3,5.21490515]
[1727162190044,1.58531221,2650.6,2650.4,3.77301]
[1727162190045,1.18811234,2650.5,2650.4,3.77301]
[1727162193956,1.18811234,2650.6,2650.4,3.77301]
[1727162194157,1.18811234,2650.6,2650.5,5.21466515]
[1727162194359,1.18811234,2650.7,2650.6,4.55953]
[1727162194562,1.18811234,2650.9,2650.8,3.77244]
[1727162194762,1.18811234,2651.1,2650.7,1.44179515]
[1727162195058,1.18811234,2651.1,2651.0,6.00075515]
[1727162195369,1.18811234,2651.2,2651.1,3.77201]
[1727162195548,1.18811234,2651.4,2651.3,3.77173]
[1727162195860,1.18811234,2651.4,2651.3,5.21352515]
[1727162196424,1.18811234,2651.4,2651.3,3.77173]
[1727162196668,1.18811234,2651.5,2651.4,3.77159]
[1727162196823,1.18811234,2651.7,2651.5,3.77145]
[1727162197023,1.18811234,2651.9,2651.8,4.55782]
[1727162197255,1.18811234,2652.3,2652.0,3.77073]
[1727162197456,1.18811234,2652.3,2652.2,6.8919038]
[1727162197670,1.18811234,2652.4,2652.3,3.77031]
[1727162197834,1.9786249,2652.6,2652.3,5.37868924]
[1727162197835,1.18811234,2652.6,2652.3,5.37868924]
[1727162198025,1.18811234,2652.6,2652.4,3.77014]
[1727162198339,1.18811234,2652.8,2652.5,3.77]
[1727162199257,1.99341234,2652.9,2652.5,3.77]
[1727162200468,0.8053,2652.9,2652.5,3.77]
[1727162200969,1.18811234,2653.0,2652.7,3.76973]
[1727162201271,1.19182837,2653.1,2652.8,3.1214538]
[1727162201474,0.00371603,2653.1,2652.9,3.76935]
[1727162201644,0.00371603,2653.1,2653.0,6.8907638]
[1727162202059,0.00371603,2653.1,2653.0,3.76931]
[1727162202260,0.00371603,2653.1,2653.0,6.8907638]
[1727162202575,0.00371603,2653.1,2653.0,12.3478565]
[1727162202783,0.00371603,2653.1,2653.0,12.27247556]
[1727162207064,0.00371603,2653.1,2653.0,7.55611]
[1727162209586,0.00371603,2653.1,2653.0,10.75294103]
[1727162209790,0.00371603,2653.1,2653.0,10.6775638]
[1727162211055,0.00371603,2653.1,2653.0,11.2275638]
[1727162218477,0.0381144,2653.3,2653.2,8.12943]
[1727162218675,0.0381144,2653.3,2653.2,16.30803698]
[1727162220703,0.0381144,2653.3,2653.2,13.18658318]
[1727162223985,0.0381144,2653.3,2653.2,16.72791718]
[1727162227974,0.0381144,2653.3,2653.2,13.60646338]
[1727162228513,0.0381144,2653.3,2653.2,10.48500958]
[1727162228719,0.0381144,2653.3,2653.2,13.18658318]
[1727162230794,0.0381144,2653.3,2653.2,13.61467983]
[1727162231008,0.0381144,2653.3,2653.2,13.18658318]
[1727162233829,0.0381144,2653.3,2653.2,16.30803698]
[1727162233984,0.0381144,2654.0,2653.2,16.30803698]
[1727162233985,0.0381144,2654.0,2653.9,4.31803]
[1727162234351,0.0381144,2654.0,2653.9,12.41234177]
[1727162234519,0.0381144,2654.0,2653.9,12.3370048]
[1727162236187,0.0381144,2654.0,2653.9,11.5481048]
[1727162236723,0.7972144,2654.0,2653.9,3.76803]
[1727162236920,0.7972144,2654.0,2653.5,3.1214538]
[1727162236921,0.7972144,2654.0,2653.8,3.76807]
[1727162237433,0.7972144,2654.0,2653.8,3.76809]
[1727162238026,0.7972144,2654.0,2653.8,3.7681]
[1727162239619,0.7972144,2654.0,2653.6,3.76838]
[1727162239824,1.25370584,2654.0,2653.6,3.76838]
[1727162239997,0.7972144,2654.0,2653.6,3.76838]
[1727162240199,0.8352144,2654.0,2653.8,3.76817]
[1727162240397,0.8352144,2654.0,2653.9,3.76803]
[1727162240638,0.8352144,2654.0,2653.8,3.76817]
[1727162240805,0.8352144,2654.0,2653.8,7.53627]
[1727162241329,0.8352144,2654.0,2653.9,3.76803]
[1727162242127,0.8352144,2654.0,2653.8,3.76809]
[1727162242327,0.8352144,2654.0,2653.9,3.76803]
[1727162242497,0.8352144,2654.0,2653.8,3.76809]
[1727162242899,0.8352144,2654.0,2653.9,3.76803]
[1727162245943,0.8352144,2654.0,2653.8,3.76817]
[1727162246362,0.0761144,2654.0,2653.9,6.96483759]
[1727162246524,0.0761144,2654.0,2653.9,7.36738836]
[1727162246868,0.0761144,2654.0,2653.9,7.36738497]
[1727162247155,0.0761144,2654.0,2653.9,3.76803]
[1727162248936,0.0761144,2654.0,2653.9,4.17052783]
[1727162249124,0.0761144,2654.0,2653.9,4.24587606]
[1727162249325,0.0761144,2654.0,2653.9,3.84337823]
[1727162249550,0.0761144,2654.0,2653.9,4.68342305]
[1727162250368,0.0761144,2654.0,2653.9,3.76803]
[1727162250873,0.0761144,2654.0,2653.9,11.2279838]
[1727162251160,0.0761144,2654.0,2653.9,11.63040605]
[1727162253636,0.0761144,2654.0,2653.9,7.31803]
[1727162254141,0.0761144,2654.0,2653.9,7.39337409]
[1727162255575,0.0761144,2654.0,2653.9,8.89862388]
[1727162255736,0.0761144,2654.0,2653.9,8.82327979]
[1727162256481,0.0761144,2654.0,2653.9,3.76803]
[1727162257570,0.8312,2653.9,2653.8,3.76817]
[1727162258771,0.8312,2653.9,2653.8,3.76818]
[1727162259773,0.8312,2653.9,2653.7,3.76828]
[1727162260081,0.8312,2653.9,2653.7,3.7683]
[1727162260241,0.8312,2653.9,2653.6,3.76845]
[1727162260242,2.01931234,2653.9,2653.6,3.76845]
[1727162260646,2.01931234,2653.9,2653.8,3.76818]
[1727162261183,0.8312,2653.9,2653.8,3.76818]
[1727162261342,0.8312,2653.9,2653.7,7.53662]
[1727162261742,2.01931234,2653.9,2653.7,3.76831]
[1727162262167,2.01931234,2653.9,2653.8,3.76818]
[1727162263085,1.18811234,2653.9,2653.8,3.76818]
[1727162263580,1.18811234,2653.9,2653.8,4.31818]
[1727162263984,1.18811234,2653.9,2653.8,3.76818]
[1727162264686,1.26422674,2654.0,2653.9,3.76803]
[1727162264852,1.26422674,2654.0,2653.7,3.76831]
[1727162265050,1.26422674,2654.0,2653.8,3.7681]
[1727162265051,1.18671118,2653.9,2653.8,3.7681]
[1727162265253,1.26282558,2654.0,2653.7,3.76831]
[1727162265568,1.26282558,2654.0,2653.9,3.76803]
[1727162266685,0.0761144,2654.0,2653.9,3.76803]
[1727162267093,1.26281715,2654.0,2653.9,3.76803]
[1727162268901,1.26281715,2654.0,2653.8,7.53632]
[1727162269107,1.26281715,2654.0,2653.8,3.76816]
[1727162269400,1.26281715,2654.0,2653.7,3.76827]
[1727162269605,1.82852746,2654.0,2653.7,3.76827]
[1727162269994,1.18670275,2653.9,2653.7,3.76827]
[1727162270691,1.18670275,2653.9,2653.7,3.76821]
[1727162271192,1.18670275,2653.9,2653.8,3.76818]
[1727162274110,1.18670275,2653.9,2653.5,3.7685]
[1727162274312,0.7887,2653.8,2653.7,3.76831]
[1727162275518,1.97540275,2653.8,2653.6,3.76844]
[1727162275720,1.97540275,2653.8,2653.5,7.53709]
[1727162275924,1.97540275,2653.8,2653.6,3.76846]
[1727162276415,1.97540275,2653.8,2653.4,3.76874]
[1727162276578,1.18670275,2653.7,2653.4,7.5374]
[1727162276777,1.18670275,2653.7,2653.5,3.76859]
[1727162276980,1.18670275,2653.7,2653.4,3.76866]
[1727162277183,0.7887,2653.6,2653.3,3.76887]
[1727162277409,1.97540275,2653.6,2653.3,3.76887]
[1727162277976,1.18670275,2653.5,2653.3,3.76887]
[1727162278176,1.97540275,2653.6,2653.3,3.76887]
[1727162278990,2.77011037,2653.6,2653.0,3.8194]
[1727162279194,1.18670275,2653.4,2653.2,3.76901]
[1727162279820,1.18670275,2653.4,2653.1,3.76915]
[1727162280007,1.18670275,2653.4,2653.1,7.53823]
[1727162280215,1.18670275,2653.4,2653.2,3.76901]
[1727162280979,1.18670275,2653.4,2652.9,3.1214538]
[1727162281188,1.18670275,2653.4,2653.3,3.76889]
[1727162281620,1.18670275,2653.4,2653.2,7.53806]
[1727162282729,1.18670275,2653.4,2653.2,3.76903]
[1727162282911,1.18670275,2653.4,2653.3,3.76889]
[1727162283111,1.96400275,2653.9,2653.4,0.55]
[1727162283320,0.7773,2653.9,2653.8,3.76818]
[1727162283702,0.7773,2653.9,2653.7,3.1214538]
[1727162283703,0.7773,2653.9,2653.7,3.76832]
[1727162283998,1.96400275,2653.9,2653.7,3.76832]
[1727162284214,2.32654569,2653.9,2653.6,3.76846]
[1727162284416,1.18670275,2653.8,2653.6,3.76846]
[1727162284802,3.76861,2653.5,2652.9,4.59325]
[1727162285029,1.96356872,2653.2,2652.7,3.76962]
[1727162285237,0.7773,2652.9,2652.7,3.76962]
[1727162285437,0.7773,2652.9,2652.5,7.53986]
[1727162285642,0.7773,2652.9,2652.6,3.76986]
[1727162285794,0.7773,2652.9,2652.5,3.76991]
[1727162285795,1.96356872,2652.9,2652.5,3.76991]
[1727162285993,1.96356872,2652.9,2652.6,3.76982]
[1727162286225,1.18626872,2652.8,2652.6,3.76982]
[1727162286435,1.96356872,2652.9,2652.7,3.76974]
[1727162286974,0.7773,2652.9,2652.7,3.76974]
[1727162287905,0.7773,2652.9,2652.8,3.7696]
[1727162288241,1.96356872,2653.3,2653.1,3.76917]
[1727162288443,1.18626872,2653.5,2653.3,3.76888]
[1727162288733,1.96356872,2653.6,2653.3,7.53764]
[1727162289044,1.96356872,2653.6,2653.4,3.76871]
[1727162289196,1.96356872,2653.6,2653.4,3.76874]
[1727162289397,0.7773,2653.6,2653.5,3.7686]
[1727162289938,0.7773,2653.6,2653.4,3.76874]
[1727162290402,0.7773,2653.6,2653.4,3.76867]
[1727162290951,0.4773,2653.6,2653.4,6.8901238]
[1727162291104,1.58169163,2653.8,2653.5,3.7686]
[1727162291105,1.18626872,2653.8,2653.5,3.7686]
[1727162291299,1.18626872,2653.9,2653.6,6.8897738]
[1727162291506,1.18626872,2653.9,2653.6,3.76832]
[1727162291743,1.66800077,2653.9,2653.5,3.7686]
[1727162291903,1.18626872,2653.8,2653.5,3.7686]
[1727162292104,1.18626872,2653.7,2653.3,3.76879]
[1727162292807,1.18626872,2653.6,2653.3,3.76879]
[1727162293918,0.7773,2653.5,2653.1,6.8905138]
[1727162294118,0.7773,2653.5,2653.1,10.6595838]
[1727162295519,0.7773,2653.5,2653.2,3.76902]
[1727162296410,0.7773,2653.5,2653.3,3.76888]
[1727162298261,1.18626872,2653.6,2653.3,8.36158]
[1727162298468,1.96356872,2653.7,2653.3,7.53768]
[1727162298764,1.96356872,2653.7,2653.3,7.5376]
[1727162299426,1.18626872,2653.6,2653.3,7.5376]
[1727162299858,1.18626872,2653.6,2653.3,3.7688]
[1727162300172,0.7773,2653.3,2652.9,3.76936]
[1727162300461,1.96356872,2653.3,2652.7,3.76965]
[1727162300667,1.18626872,2653.2,2652.7,3.76965]
[1727162300853,1.18626872,2653.2,2652.7,7.5393]
[1727162301361,1.18626872,2653.2,2652.8,3.76949]
[1727162301579,1.18626872,2653.1,2652.8,3.76949]
[1727162301872,1.18626872,2653.2,2652.8,3.76949]
[1727162303743,1.18626872,2653.2,2652.9,3.76942]
[1727162303952,1.18626872,2653.2,2652.9,7.53879]
[1727162304229,1.18626872,2653.2,2652.9,3.76936]
[1727162304570,1.91767676,2653.2,2652.8,3.76949]
[1727162305445,0.73140804,2653.2,2652.8,3.76949]
[1727162305642,1.91767676,2653.2,2652.9,3.76945]
[1727162305846,1.18626872,2653.2,2652.9,3.76945]
[1727162306570,1.96356872,2653.3,2652.9,3.76945]
[1727162307365,1.18626872,2653.2,2652.9,3.76945]
[1727162307750,1.18626872,2653.2,2652.8,3.7696]
[1727162309494,1.96356872,2653.3,2652.9,3.76944]
[1727162310167,1.96356872,2653.3,2653.0,3.76923]
[1727162312177,1.96356872,2653.3,2653.1,3.76914]
[1727162312394,1.96356872,2653.3,2653.0,7.53843]
[1727162312969,1.96356872,2653.3,2653.0,3.7692]
[1727162313910,1.99356872,2653.5,2653.2,3.76903]
[1727162314950,1.99356872,2653.5,2653.3,3.76885]
[1727162315144,1.99356872,2653.5,2653.2,3.76899]
[1727162316384,1.99356872,2653.5,2653.3,3.76886]
[1727162316771,1.18626872,2653.6,2653.3,3.76881]
[1727162317046,1.18626872,2653.6,2653.3,3.76885]
[1727162317572,1.18626872,2653.6,2653.3,3.7688]
[1727162317767,1.18626872,2653.6,2653.3,7.53758]
[1727162317968,1.18626872,2653.6,2653.3,3.76878]
[1727162318491,1.18626872,2653.5,2653.3,7.53757]
[1727162318871,1.18626872,2653.5,2653.4,3.76874]
[1727162320606,1.18626872,2653.7,2653.6,3.76846]
[1727162320813,1.18626872,2653.8,2653.5,3.76859]
[1727162320956,1.18626872,2653.7,2653.6,3.76846]
[1727162321393,1.18626872,2653.8,2653.6,3.76846]
[1727162321600,1.18626872,2653.8,2653.7,3.76832]
[1727162323095,1.18626872,2653.8,2653.6,3.76846]
[1727162323294,1.18626872,2653.7,2653.6,7.53692]
[1727162323497,1.18626872,2653.7,2653.6,3.76846]
[1727162323714,1.18626872,2653.8,2653.6,3.76846]
[1727162323868,1.18626872,2653.8,2653.6,7.53685]
[1727162324206,1.18626872,2653.7,2653.6,3.76839]
[1727162324572,1.18626872,2653.7,2653.4,3.76865]
[1727162324777,0.8073,2653.7,2653.4,3.76865]
[1727162324979,1.99356872,2653.7,2653.6,3.76846]
[1727162325304,1.99356872,2653.7,2653.4,3.76865]
[1727162325465,1.99356872,2653.7,2653.5,3.76858]
[1727162325866,1.99356872,2653.7,2653.4,3.76865]
[1727162326870,0.814,2653.4,2652.7,4.53609]
[1727162327065,1.18626872,2653.2,2652.9,3.76939]
[1727162327309,1.18626872,2653.1,2652.8,3.7695]
[1727162329103,1.18626872,2653.0,2652.7,3.76964]
[1727162329265,2.00026872,2653.0,2652.7,3.76964]
[1727162329773,1.18626872,2652.9,2652.7,3.76964]
[1727162330178,1.18626872,2652.9,2652.5,3.7699]
[1727162330581,2.39569163,2653.0,2652.5,3.7699]
[1727162330582,1.18626872,2652.8,2652.5,3.7699]
[1727162331497,1.18626872,2652.8,2652.5,7.53983]
[1727162331672,1.18626872,2652.8,2652.6,3.76987]
[1727162334111,1.18626872,2652.9,2652.6,3.76987]
[1727162334666,1.18626872,2652.8,2652.6,3.76987]
[1727162334910,1.18626872,2652.9,2652.6,3.76987]
[1727162335406,1.18626872,2652.8,2652.6,3.76987]
[1727162335835,1.18626872,2652.8,2652.4,3.77016]
[1727162336034,0.814,2652.7,2652.2,3.77035]
[1727162336240,1.18626872,2652.6,2652.2,7.54072]
[1727162336423,1.18626872,2652.6,2652.3,3.7703]
[1727162336934,2.00026872,2652.7,2652.3,3.7703]
[1727162338300,2.00026872,2652.7,2652.4,3.77016]
[1727162338605,2.00026872,2652.7,2652.4,7.54023]
[1727162338811,2.00026872,2652.7,2652.4,3.77007]
[1727162339407,2.00026872,2652.7,2652.5,3.77]
[1727162339744,2.00026872,2652.7,2652.5,3.77002]
[1727162340812,1.18626872,2652.7,2652.5,3.77002]
[1727162341825,1.18626872,2652.7,2652.3,3.77026]
[1727162342050,1.18626872,2652.6,2652.1,4.53686]
[1727162342226,1.18626872,2652.6,2652.3,3.77029]
[1727162342426,1.18626872,2652.5,2652.3,3.77029]
[1727162344230,0.7613,2652.5,2652.3,3.77029]
[1727162345224,1.18626872,2652.4,2652.0,3.7707]
[1727162345429,3.77073,2652.0,2651.5,3.77135]
[1727162345630,1.94756872,2652.1,2651.5,3.77135]
[1727162345843,1.18626872,2652.0,2651.5,3.77135]
[1727162346146,2.34299163,2652.1,2651.7,3.77109]
[1727162346147,1.94756872,2652.1,2651.7,3.77109]
[1727162347446,5.71816872,2652.1,2651.6,3.77127]
[1727162347619,4.5319,2652.1,2651.6,3.77127]
[1727162348124,5.71816872,2652.1,2651.6,3.77127]
[1727162348747,0.7613,2652.1,2651.7,3.77109]
[1727162349039,0.7613,2652.1,2651.8,6.8923438]
[1727162350121,0.7613,2652.3,2651.8,7.6595738]
[1727162350448,0.7613,2652.3,2651.6,3.1214538]
[1727162350638,4.72643687,2652.3,2651.7,3.77109]
[1727162350835,3.77052,2652.2,2651.7,3.77109]
[1727162351151,0.7613,2652.0,2651.5,3.77134]
[1727162351310,0.7993,2652.0,2651.6,3.77121]
[1727162352225,0.7993,2652.0,2651.7,3.77113]
[1727162352740,0.7993,2652.0,2651.8,3.1214538]
[1727162352946,0.038,2652.0,2651.9,3.77088]
[1727162358559,0.038,2652.0,2651.8,7.54193]
[1727162359134,0.038,2652.0,2651.8,3.77093]
[1727162359530,0.038,2652.0,2651.7,3.77108]
[1727162359761,0.494985,2652.0,2651.7,3.77108]
[1727162360056,0.494985,2652.0,2651.6,3.77126]
[1727162360957,0.038,2652.0,2651.6,3.77126]
[1727162362238,0.038,2652.0,2651.7,3.77115]
[1727162365626,0.038,2652.0,2651.9,3.77088]